bitfinex/quotes_BTCUSD_20220101
["timestamp","ask_amount","ask_price","bid_price","bid_amount"]
[1641049396866,0.66260237,46934.0,46933.0,0.0058826]
[1641049397066,0.76260237,46934.0,46927.0,0.00011]
[1641049397267,0.71347233,46928.0,46927.0,0.00011]
[1641049397466,1.0202978,46928.0,46927.0,0.00011]
[1641049397667,0.35347233,46928.0,46927.0,0.00011]
[1641049398671,0.40676133,46928.0,46927.0,0.00011]
[1641049398874,0.35347233,46928.0,46927.0,0.00011]
[1641049399070,0.00896257,46933.0,46927.0,0.00560021]
[1641049399272,0.00896257,46933.0,46927.0,0.04810021]
[1641049399774,0.00896257,46933.0,46928.0,0.15980798]
[1641049400035,0.00896257,46933.0,46932.0,0.00739118]
[1641049400236,0.4136022,46938.0,46932.0,0.00739118]
[1641049400438,0.4136022,46938.0,46931.0,0.053269]
[1641049400639,0.00119454,46937.0,46932.0,0.0425]
[1641049400841,0.00119454,46937.0,46934.0,0.05326643]
[1641049401038,0.00119454,46937.0,46935.0,0.0425]
[1641049401239,0.00119454,46937.0,46936.0,0.340642]
[1641049401441,0.00119454,46937.0,46936.0,0.383142]
[1641049401840,0.00119454,46937.0,46936.0,0.39053318]
[1641049402039,0.00119454,46937.0,46936.0,0.383142]
[1641049402640,0.00119454,46937.0,46936.0,0.40153366]
[1641049403040,0.00119454,46937.0,46936.0,0.40892484]
[1641049403241,0.00119454,46937.0,46936.0,1.1306471]
[1641049403667,0.00101893,46937.0,46936.0,1.1306471]
[1641049403872,0.00101893,46937.0,46936.0,1.24926044]
[1641049404073,0.00101893,46937.0,46936.0,1.23086878]
[1641049404671,0.00101893,46937.0,46936.0,0.50914652]
[1641049404872,0.00101893,46937.0,46936.0,1.45400985]
[1641049405071,0.00101893,46937.0,46936.0,1.43539651]
[1641049405475,0.00101893,46937.0,46936.0,0.50945544]
[1641049405871,0.00101893,46937.0,46936.0,1.45405706]
[1641049406072,0.00101893,46937.0,46936.0,1.4351348]
[1641049406471,0.00101893,46937.0,46936.0,1.9351348]
[1641049406674,0.00101893,46937.0,46936.0,3.2601348]
[1641049406873,0.00101893,46937.0,46936.0,3.81211772]
[1641049407073,0.00101893,46937.0,46936.0,3.79345717]
[1641049407911,0.00101893,46937.0,46936.0,2.6662833]
[1641049408912,0.00101893,46937.0,46936.0,2.6848674]
[1641049409514,0.00101893,46937.0,46936.0,2.64817425]
[1641049409912,0.04723683,46940.0,46939.0,0.059762]
[1641049410112,0.04723683,46940.0,46939.0,0.16290818]
[1641049410512,0.04723683,46940.0,46939.0,0.21290818]
[1641049412967,0.04723683,46940.0,46939.0,0.41412223]
[1641049413168,0.04723683,46940.0,46939.0,1.63912223]
[1641049413372,0.04723683,46940.0,46939.0,1.69599481]
[1641049414168,0.04723683,46940.0,46939.0,2.19599481]
[1641049414572,0.04723683,46940.0,46939.0,2.21545283]
[1641049414770,0.04723683,46940.0,46939.0,4.09288961]
[1641049415033,0.04723683,46940.0,46939.0,4.09379598]
[1641049415436,0.04723683,46940.0,46939.0,4.62549598]
[1641049415833,0.04723683,46940.0,46939.0,4.63097547]
[1641049416035,0.04723683,46940.0,46939.0,4.48097547]
[1641049416235,0.04723683,46940.0,46939.0,4.19282448]
[1641049416534,0.04723683,46940.0,46939.0,3.08797518]
[1641049416734,0.04723683,46940.0,46939.0,3.06761079]
[1641049416937,0.04723683,46940.0,46939.0,3.08812992]
[1641049417142,0.04159981,46940.0,46939.0,1.42182085]
[1641049417735,0.04159981,46940.0,46939.0,1.22182085]
[1641049417934,0.04159981,46940.0,46939.0,1.24219248]
[1641049418137,0.04159981,46940.0,46939.0,1.42167335]
[1641049418339,0.04159981,46940.0,46939.0,2.14495989]
[1641049418537,0.04159981,46940.0,46939.0,2.34495989]
[1641049418774,0.04159981,46940.0,46939.0,4.33166331]
[1641049418975,0.04159981,46940.0,46939.0,4.35040836]
[1641049419174,0.04159981,46940.0,46939.0,4.33003673]
[1641049419779,0.04159981,46940.0,46939.0,3.48547036]
[1641049419975,0.04159981,46940.0,46939.0,3.50375672]
[1641049420175,0.04159981,46940.0,46939.0,3.48501167]
[1641049420375,0.04159981,46940.0,46939.0,3.54188425]
[1641049421178,0.04159981,46940.0,46939.0,3.56080654]
[1641049421382,0.04159981,46940.0,46939.0,3.54252018]
[1641049421979,0.04159981,46940.0,46939.0,3.56104986]
[1641049422179,0.04159981,46940.0,46939.0,3.54212757]
[1641049423052,0.04159981,46940.0,46939.0,3.56030186]
[1641049423252,0.04159981,46940.0,46939.0,3.54177218]
[1641049423953,0.04159981,46940.0,46939.0,3.56292969]
[1641049424153,0.04159981,46940.0,46939.0,3.5447554]
[1641049424753,0.04159981,46940.0,46939.0,2.4197554]
[1641049424754,0.0414242,46940.0,46939.0,2.4197554]
[1641049424957,0.0414242,46940.0,46939.0,2.38123108]
[1641049425155,0.0414242,46940.0,46939.0,2.16007357]
[1641049425354,0.0414242,46940.0,46939.0,2.58007357]
[1641049425956,0.0414242,46940.0,46939.0,2.60132533]
[1641049426176,0.0414242,46940.0,46939.0,2.58297707]
[1641049426975,0.0414242,46940.0,46939.0,2.60454426]
[1641049427176,0.0414242,46940.0,46939.0,2.5832925]
[1641049428076,0.0414242,46940.0,46939.0,2.60308025]
[1641049429075,0.0414242,46940.0,46939.0,2.62497391]
[1641049429940,0.0414242,46940.0,46939.0,2.56172531]
[1641049430132,0.0414242,46940.0,46939.0,2.58168574]
[1641049430927,0.0376421,46940.0,46939.0,2.58168574]
[1641049431128,0.0376421,46940.0,46939.0,2.60182871]
[1641049431330,0.0376421,46940.0,46939.0,2.58186828]
[1641049432128,0.0376421,46940.0,46939.0,3.42412092]
[1641049432731,0.0376421,46940.0,46939.0,3.44340101]
[1641049432927,0.0376421,46940.0,46939.0,3.42325804]
[1641049433127,0.0376421,46940.0,46939.0,3.44287912]
[1641049433329,0.0376421,46940.0,46939.0,3.42359903]
[1641049434181,0.0376421,46940.0,46939.0,3.44541951]
[1641049434380,0.0376421,46940.0,46939.0,3.42579843]
[1641049435181,0.0376421,46940.0,46939.0,3.42354829]
[1641049435484,0.0376421,46940.0,46939.0,4.74854829]
[1641049435982,0.0376421,46940.0,46939.0,4.7688094]
[1641049436181,0.0376421,46940.0,46939.0,4.74923906]
[1641049437183,0.0376421,46940.0,46939.0,4.76799055]
[1641049437427,0.0376421,46940.0,46939.0,4.74772944]
[1641049438222,0.03200508,46940.0,46939.0,4.76673857]
[1641049438422,0.03200508,46940.0,46939.0,4.74798708]
[1641049438922,0.03200508,46940.0,46939.0,3.62298708]
[1641049439122,0.03200508,46940.0,46939.0,2.78073444]
[1641049439522,0.03200508,46940.0,46939.0,2.58073444]
[1641049439724,0.03200508,46940.0,46939.0,3.44059238]
[1641049439921,0.03200508,46940.0,46939.0,3.42158325]
[1641049440122,0.03200508,46940.0,46939.0,3.44119961]
[1641049440321,0.03200508,46940.0,46939.0,3.42271666]
[1641049440723,0.03200508,46940.0,46939.0,3.32271666]
[1641049440923,0.03200508,46940.0,46939.0,3.22271666]
[1641049441186,0.03200508,46940.0,46939.0,3.24203408]
[1641049441487,0.00896234,46945.0,46941.0,0.15975987]
[1641049441684,0.00896234,46945.0,46944.0,0.39436858]
[1641049441882,0.00896234,46945.0,46944.0,0.43686858]
[1641049442283,0.0425,46950.0,46944.0,0.43686858]
[1641049442482,0.0425,46950.0,46944.0,0.436336]
[1641049442684,0.0425,46950.0,46946.0,0.05325276]
[1641049442884,0.0425,46950.0,46947.0,0.0425]
[1641049444284,0.0425,46950.0,46948.0,0.05325171]
[1641049444484,0.0425,46950.0,46949.0,0.0425]
[1641049445824,0.04232439,46950.0,46949.0,0.0425]
[1641049446826,0.04232439,46950.0,46949.0,0.433142]
[1641049447529,0.04232439,46950.0,46949.0,0.583142]
[1641049447730,0.04232439,46950.0,46949.0,0.483142]
[1641049447930,0.04232439,46950.0,46949.0,0.68963]
[1641049448132,0.04232439,46950.0,46949.0,0.7100749]
[1641049449180,0.04232439,46950.0,46949.0,0.72929063]
[1641049449386,0.04232439,46950.0,46949.0,0.70884573]
[1641049450282,0.04232439,46950.0,46949.0,0.72767157]
[1641049450485,0.04232439,46950.0,46949.0,0.70845584]
[1641049451283,0.04232439,46950.0,46949.0,0.73035776]
[1641049451483,0.04232439,46950.0,46949.0,0.71153192]
[1641049451882,0.03854229,46950.0,46949.0,0.71153192]
[1641049452084,0.03854229,46950.0,46949.0,0.51153192]
[1641049452528,0.00119416,46951.0,46950.0,0.06145771]
[1641049452727,0.00119416,46951.0,46950.0,0.10395771]
[1641049457785,0.00119416,46951.0,46950.0,0.44459971]
[1641049459186,0.7214091,46958.0,46951.0,0.059626]
[1641049459387,0.7214091,46958.0,46954.0,0.05324388]
[1641049459587,0.7214091,46958.0,46952.0,0.095744]
[1641049459588,0.7214091,46958.0,46955.0,0.0425]
[1641049459788,0.7214091,46958.0,46956.0,0.0425]
[1641049460423,0.002,46959.0,46956.0,0.0425]
[1641049460621,0.002,46959.0,46956.0,0.09574238]
[1641049461224,0.002,46959.0,46956.0,0.0425]
[1641049462922,0.053251,46958.0,46956.0,0.0425]
[1641049463121,0.002,46959.0,46956.0,0.0425]
[1641049463322,0.002,46959.0,46956.0,0.04796233]
[1641049463981,0.108501,46959.0,46956.0,0.04796233]
[1641049464181,0.002,46959.0,46956.0,0.04796233]
[1641049466184,0.1085,46959.0,46956.0,0.04796233]
[1641049466485,0.05525,46959.0,46956.0,0.04796233]
[1641049466884,0.00182439,46959.0,46956.0,0.04796233]
[1641049467084,0.00182439,46959.0,46956.0,0.00546233]
[1641049467721,0.7262549,46958.0,46956.0,0.00546233]
[1641049472982,0.7224728,46958.0,46956.0,0.00546233]
[1641049475731,0.60699513,46959.0,46956.0,0.00546233]
[1641049476131,0.60699513,46959.0,46958.0,0.00739118]
[1641049476531,0.60699513,46959.0,46956.0,0.05870332]
[1641049476734,0.60699513,46959.0,46956.0,0.00546233]
[1641049476932,0.00182439,46959.0,46956.0,0.00546233]
[1641049477533,0.60699513,46959.0,46958.0,0.00739118]
[1641049479782,0.60699513,46959.0,46958.0,0.04989118]
[1641049479982,0.60699513,46959.0,46958.0,0.33761267]
[1641049480182,0.60101169,46959.0,46958.0,0.14989118]
[1641049480382,0.60101169,46959.0,46958.0,0.43699689]
[1641049480587,0.60101169,46959.0,46958.0,0.43547142]
[1641049480783,0.60101169,46959.0,46958.0,0.43774409]
[1641049480984,0.3479265,46964.0,46958.0,0.43774409]
[1641049481183,0.3433265,46964.0,46961.0,0.05323558]
[1641049481384,0.3433265,46964.0,46961.0,0.0425]
[1641049483530,1.06955151,46964.0,46961.0,0.0425]
[1641049484834,0.3433265,46964.0,46961.0,0.0425]
[1641049485835,0.3433265,46964.0,46961.0,0.095734]
[1641049486038,0.3433265,46964.0,46962.0,0.05323325]
[1641049487085,0.3433265,46964.0,46962.0,0.10646725]
[1641049487287,0.01,46964.0,46962.0,0.39152475]
[1641049487885,0.00982439,46964.0,46962.0,0.39152475]
[1641049488486,0.00982439,46964.0,46962.0,0.41093272]
[1641049488689,0.00982439,46964.0,46963.0,0.0425]
[1641049492340,0.35046639,46964.0,46963.0,0.0425]
[1641049492535,0.00982439,46964.0,46963.0,0.0425]
[1641049492734,0.06306839,46964.0,46963.0,0.0425]
[1641049493773,0.78931703,46964.0,46963.0,0.0425]
[1641049493973,0.78553493,46964.0,46963.0,0.0425]
[1641049494978,0.05928629,46964.0,46963.0,0.0425]
[1641049496376,0.00604229,46964.0,46963.0,0.0425]
[1641049498726,0.05928629,46964.0,46962.0,0.00545642]
[1641049499131,0.00604229,46964.0,46962.0,0.00545642]
[1641049501378,0.00040527,46964.0,46962.0,0.00545642]
[1641049504582,0.00040527,46964.0,46962.0,0.05869115]
[1641049505033,0.00040527,46964.0,46962.0,0.11192515]
[1641049505434,0.00040527,46964.0,46963.0,0.28642796]
[1641049505632,0.00040527,46964.0,46962.0,0.11192515]
[1641049505833,0.00040527,46964.0,46962.0,0.05869115]
[1641049506032,0.00040527,46964.0,46962.0,0.00545642]
[1641049507037,0.0001,46966.0,46964.0,0.4012631]
[1641049507234,0.0001,46966.0,46965.0,1.10158144]
[1641049507434,0.0001,46966.0,46965.0,1.114842]
[1641049507740,0.0001,46966.0,46965.0,2.339842]
[1641049508335,0.0001,46966.0,46965.0,2.84723318]
[1641049508535,0.0001,46966.0,46965.0,2.8670163]
[1641049508986,2.439e-05,46967.0,46966.0,0.259478]
[1641049509182,2.439e-05,46967.0,46966.0,0.30936918]
[1641049509483,2.439e-05,46967.0,46966.0,0.67045165]
[1641049509682,2.439e-05,46967.0,46966.0,0.77045165]
[1641049510083,2.439e-05,46967.0,46966.0,0.57045165]
[1641049510482,2.439e-05,46967.0,46966.0,0.58858893]
[1641049510686,2.439e-05,46967.0,46966.0,1.08858893]
[1641049510884,2.439e-05,46967.0,46966.0,0.72011528]
[1641049511084,0.05432439,46967.0,46966.0,0.57761528]
[1641049511284,0.05432439,46967.0,46966.0,0.07761528]
[1641049511484,0.49286194,46967.0,46966.0,0.07761528]
[1641049511685,0.49286194,46967.0,46966.0,0.01813728]
[1641049512286,0.49286194,46967.0,46966.0,0.03894281]
[1641049512527,0.48786194,46967.0,46966.0,0.03894281]
[1641049512928,0.48786194,46967.0,46966.0,0.01813728]
[1641049513125,0.48786194,46967.0,46965.0,0.103233]
[1641049513326,0.48786194,46967.0,46964.0,0.00545533]
[1641049513528,0.48786194,46967.0,46965.0,0.05]
[1641049513728,0.48786194,46967.0,46964.0,0.05868833]
[1641049513930,0.48786194,46967.0,46965.0,0.05323291]
[1641049514532,0.48905566,46967.0,46965.0,0.05323291]
[1641049514932,0.48527356,46967.0,46965.0,0.05323291]
[1641049515436,0.48527356,46967.0,46966.0,0.00545372]
[1641049520238,0.48027356,46967.0,46966.0,0.00545372]
[1641049521240,0.0001,46968.0,46966.0,0.00545372]
[1641049522239,0.04383601,46969.0,46966.0,0.00545372]
[1641049522439,0.03829899,46969.0,46966.0,0.00545372]
[1641049522640,0.49077296,46969.0,46967.0,0.10646152]
[1641049522939,0.49077296,46969.0,46967.0,0.05323052]
[1641049525286,0.49077296,46969.0,46966.0,0.00545372]
[1641049525788,0.79802272,46969.0,46966.0,0.00545372]
[1641049526588,0.03829899,46967.0,46966.0,0.00545372]
[1641049529941,0.03812338,46967.0,46966.0,0.00545372]
[1641049532880,0.03812338,46967.0,46966.0,3.0715659]
[1641049533078,0.03812338,46967.0,46966.0,0.55254872]
[1641049533878,0.03812338,46967.0,46966.0,0.57338592]
[1641049534279,0.03812338,46967.0,46966.0,0.5807771]
[1641049534681,0.03812338,46967.0,46966.0,0.64435857]
[1641049534952,0.03812338,46967.0,46966.0,0.62352137]
[1641049535744,0.03812338,46967.0,46966.0,0.64298857]
[1641049535944,0.03812338,46967.0,46966.0,0.9309241]
[1641049536248,0.5001,46970.0,46968.0,0.1064444]
[1641049536446,0.5001,46970.0,46969.0,0.35117298]
[1641049536646,0.5001,46970.0,46969.0,0.40117298]
[1641049536844,0.5001,46970.0,46969.0,0.11685618]
[1641049537044,0.5001,46970.0,46969.0,0.06685618]
[1641049539989,0.5001,46970.0,46969.0,0.3551464]
[1641049540190,0.5001,46970.0,46969.0,0.06685618]
[1641049540390,0.5001,46970.0,46969.0,0.3515277]
[1641049540790,0.5001,46970.0,46969.0,0.08853183]
[1641049541990,0.5001,46970.0,46968.0,0.01822048]
[1641049543041,0.5001,46970.0,46967.0,0.02134867]
[1641049543441,0.49446298,46970.0,46967.0,0.02134867]
[1641049544046,0.49446298,46970.0,46964.0,0.77034554]
[1641049544243,0.49446298,46970.0,46968.0,0.05322393]
[1641049544446,0.49446298,46970.0,46968.0,0.10322393]
[1641049544643,0.49446298,46970.0,46968.0,0.15322393]
[1641049544843,0.49446298,46970.0,46969.0,0.28460462]
[1641049545043,0.49446298,46970.0,46969.0,0.33460462]
[1641049545246,0.49446298,46970.0,46969.0,0.28460462]
[1641049545644,0.49446298,46970.0,46969.0,0.33460462]
[1641049545846,0.49446298,46970.0,46969.0,0.35462437]
[1641049546046,0.49446298,46970.0,46969.0,0.55784737]
[1641049546286,0.49446298,46970.0,46969.0,0.89848937]
[1641049546793,0.49446298,46970.0,46969.0,0.9170782]
[1641049546987,0.49446298,46970.0,46969.0,0.89705845]
[1641049547988,0.49446298,46970.0,46969.0,0.90250893]
[1641049548389,0.49446298,46970.0,46969.0,0.92251836]
[1641049548688,0.49446298,46970.0,46969.0,0.90392953]
[1641049548890,0.49446298,46970.0,46969.0,0.96582039]
[1641049549088,0.49446298,46970.0,46969.0,0.94581096]
[1641049549688,0.49446298,46970.0,46969.0,0.60798334]
[1641049549945,0.49446298,46970.0,46969.0,0.62802244]
[1641049550335,0.49446298,46970.0,46969.0,0.91966021]
[1641049550835,0.49446298,46970.0,46969.0,0.93784857]
[1641049551034,0.49428737,46970.0,46969.0,0.89841861]
[1641049551838,0.49428737,46970.0,46969.0,0.91821871]
[1641049552035,0.49428737,46970.0,46969.0,0.62658094]
[1641049552235,0.49428737,46970.0,46969.0,0.40839258]
[1641049552837,0.49428737,46970.0,46969.0,0.42899948]
[1641049553039,0.49428737,46970.0,46969.0,0.40919938]
[1641049553236,0.49428737,46970.0,46969.0,0.61242538]
[1641049553439,0.49428737,46970.0,46969.0,0.51242538]
[1641049553882,0.49428737,46970.0,46969.0,0.86768193]
[1641049554079,0.49428737,46970.0,46969.0,0.94707503]
[1641049554881,0.49428737,46970.0,46969.0,0.96700966]
[1641049555180,0.49428737,46970.0,46969.0,0.74685559]
[1641049555882,0.49428737,46970.0,46969.0,0.76729264]
[1641049556583,0.49428737,46970.0,46969.0,0.96729264]
[1641049556783,0.49428737,46970.0,46969.0,0.92692096]
[1641049556985,0.49428737,46970.0,46969.0,0.79760081]
[1641049557182,0.49050527,46970.0,46969.0,0.56249833]
[1641049557641,0.49050527,46970.0,46969.0,0.50927233]
[1641049558441,0.49050527,46970.0,46969.0,0.52910221]
[1641049558642,0.49050527,46970.0,46969.0,0.60842236]
[1641049559043,0.49050527,46970.0,46969.0,0.62967476]
[1641049559244,0.49050527,46970.0,46969.0,0.45984488]
[1641049559846,0.49050527,46970.0,46969.0,0.48126569]
[1641049560049,0.49050527,46970.0,46969.0,0.46001329]
[1641049560945,0.49050527,46970.0,46969.0,0.47974915]
[1641049561181,0.49050527,46970.0,46969.0,0.45832834]
[1641049561378,0.49050527,46970.0,46969.0,0.50832834]
[1641049561979,0.49050527,46970.0,46969.0,0.52917075]
[1641049562185,0.49050527,46970.0,46969.0,0.50943489]
[1641049562981,0.49050527,46970.0,46969.0,0.53107504]
[1641049563181,0.49050527,46970.0,46969.0,0.51023263]
[1641049563382,0.49050527,46970.0,46969.0,0.79480517]
[1641049563883,0.49050527,46970.0,46969.0,0.90124717]
[1641049564082,0.49050527,46970.0,46969.0,0.92007014]
[1641049564282,0.49050527,46970.0,46969.0,0.89842999]
[1641049564481,0.48486825,46970.0,46969.0,0.89842999]
[1641049564685,0.48486825,46970.0,46969.0,0.93842999]
[1641049564950,0.48486825,46970.0,46969.0,0.95786725]
[1641049565144,0.48486825,46970.0,46969.0,0.93904428]
[1641049565944,0.48486825,46970.0,46969.0,0.90835411]
[1641049566142,0.48486825,46970.0,46969.0,0.88891685]
[1641049566944,0.48486825,46970.0,46969.0,0.90890541]
[1641049567144,0.48486825,46970.0,46969.0,0.88959558]
[1641049567943,0.48486825,46970.0,46969.0,0.90817347]
[1641049568143,0.48486825,46970.0,46969.0,0.88818491]
[1641049568781,0.48486825,46970.0,46969.0,0.60361237]
[1641049569082,0.48486825,46970.0,46969.0,0.88878805]
[1641049569681,0.48486825,46970.0,46969.0,0.88916285]
[1641049570181,0.48486825,46970.0,46969.0,0.88889333]
[1641049570784,0.48486825,46970.0,46969.0,0.93889333]
[1641049570985,0.48486825,46970.0,46969.0,1.06048992]
[1641049571185,0.48486825,46970.0,46969.0,1.04180675]
[1641049571584,0.48486825,46970.0,46969.0,0.75663107]
[1641049571983,0.48469264,46970.0,46969.0,0.7763656]
[1641049572184,0.48469264,46970.0,46969.0,0.75476901]
[1641049573040,0.48469264,46970.0,46969.0,0.77630425]
[1641049573237,0.48469264,46970.0,46969.0,0.75656972]
[1641049573737,0.48469264,46970.0,46969.0,1.0411924]
[1641049573936,0.48469264,46970.0,46969.0,1.05929455]
[1641049574139,0.48469264,46970.0,46969.0,1.03775931]
[1641049574540,0.42032732,46970.0,46969.0,1.77805156]
[1641049574740,0.30420177,46970.0,46969.0,2.27805156]
[1641049575042,0.0176613,46971.0,46970.0,0.2]
[1641049575239,0.0176613,46971.0,46970.0,1.96603018]
[1641049575539,6.13e-05,46971.0,46970.0,2.39807076]
[1641049575737,6.13e-05,46971.0,46970.0,2.94807076]
[1641049575942,6.13e-05,46971.0,46970.0,3.03728076]
[1641049576184,6.13e-05,46971.0,46970.0,4.56351607]
[1641049576682,0.0001,46973.0,46970.0,3.72214108]
[1641049576885,0.0001,46973.0,46972.0,1.95673064]
[1641049577082,0.0001,46973.0,46972.0,3.22423064]
[1641049577684,0.0001,46973.0,46972.0,3.89104397]
[1641049578085,0.00851627,46979.0,46976.0,0.059429]
[1641049578283,0.00851627,46979.0,46978.0,1.15246427]
[1641049578484,0.00851627,46979.0,46978.0,3.40575014]
[1641049578684,0.00851627,46979.0,46978.0,4.29504125]
[1641049579083,0.00851627,46979.0,46978.0,4.31525717]
[1641049579287,3.63e-06,46981.0,46980.0,2.695558]
[1641049579588,0.18692127,46993.0,46989.0,0.2012758]
[1641049579788,0.0003,46995.0,46991.0,0.2]
[1641049580031,0.0003,46995.0,46992.0,0.0425]
[1641049580236,0.0003,46995.0,46992.0,0.12868]
[1641049580435,0.0003,46995.0,46993.0,0.5]
[1641049580631,0.0003,46995.0,46993.0,0.5425]
[1641049580632,0.01149305,46994.0,46993.0,0.5425]
[1641049580833,0.01149305,46994.0,46993.0,0.5925]
[1641049581133,0.01149305,46994.0,46993.0,0.61444456]
[1641049581335,0.38793134,46995.0,46993.0,0.61444456]
[1641049581531,0.38452439,46995.0,46993.0,0.66444456]
[1641049581732,0.38452439,46995.0,46994.0,0.053197]
[1641049581934,0.38452439,46995.0,46994.0,0.095697]
[1641049582534,0.38452439,46995.0,46994.0,0.1488938]
[1641049583133,6.0002,46996.0,46994.0,0.1488938]
[1641049583537,6.0002,46996.0,46994.0,0.0425]
[1641049585005,6.0002,46996.0,46994.0,0.14889745]
[1641049585206,6.0002,46996.0,46994.0,0.1543244]
[1641049585410,5.99456298,46996.0,46994.0,0.1543244]
[1641049587640,5.99456298,46996.0,46994.0,0.1011264]
[1641049589243,5.99456298,46996.0,46995.0,0.5]
[1641049589442,5.99456298,46996.0,46995.0,0.5925]
[1641049589644,5.99456298,46996.0,46995.0,0.7425]
[1641049589944,5.99456298,46996.0,46995.0,0.6425]
[1641049590143,5.99456298,46996.0,46995.0,0.56396278]
[1641049590546,5.99456298,46996.0,46995.0,0.66396278]
[1641049590743,5.99456298,46996.0,46995.0,0.16396278]
[1641049591187,5.99456298,46996.0,46995.0,0.18372517]
[1641049591388,5.99456298,46996.0,46995.0,0.16226239]
[1641049592286,5.99456298,46996.0,46995.0,0.14989118]
[1641049592687,5.99456298,46996.0,46995.0,0.43738032]
[1641049592887,5.99456298,46996.0,46995.0,0.63738032]
[1641049593088,5.99438737,46996.0,46995.0,0.73738032]
[1641049593687,5.99438737,46996.0,46995.0,0.24989118]
[1641049594088,5.99438737,46996.0,46995.0,0.64989118]
[1641049594389,5.99438737,46996.0,46995.0,0.66826198]
[1641049594589,5.99438737,46996.0,46995.0,1.05022423]
[1641049595048,5.99438737,46996.0,46995.0,0.76826198]
[1641049595247,5.99438737,46996.0,46995.0,1.07040274]
[1641049595448,5.99438737,46996.0,46995.0,1.05203194]
[1641049596249,5.99438737,46996.0,46995.0,1.27332096]
[1641049596448,5.99438737,46996.0,46995.0,1.255101]
[1641049597153,5.99438737,46996.0,46995.0,1.786801]
[1641049597349,5.99438737,46996.0,46995.0,1.80529923]
[1641049597548,5.99438737,46996.0,46995.0,1.78401021]
[1641049597848,5.98288737,46996.0,46995.0,1.78401021]
[1641049598348,5.98288737,46996.0,46995.0,1.78604648]
[1641049599194,5.97910527,46996.0,46995.0,1.78604648]
[1641049599394,5.97910527,46996.0,46995.0,1.80572538]
[1641049599597,5.97910527,46996.0,46995.0,1.78519088]
[1641049599996,5.96893023,46996.0,46995.0,2.02797229]
[1641049600195,5.96893023,46996.0,46995.0,3.55048687]
[1641049600395,5.96893023,46996.0,46995.0,3.26545285]
[1641049600596,5.95543023,46996.0,46995.0,3.26545285]
[1641049600798,5.95543023,46996.0,46995.0,1.89897049]
[1641049600996,5.95543023,46996.0,46995.0,1.30145591]
[1641049601197,5.95543023,46996.0,46995.0,1.10145591]
[1641049601397,5.95543023,46996.0,46995.0,0.56106568]
[1641049601995,6.24223814,46996.0,46995.0,0.58253747]
[1641049602195,6.24223814,46996.0,46995.0,0.08477992]
[1641049602449,6.24223814,46996.0,46995.0,0.06330813]
[1641049602646,6.58288014,46996.0,46995.0,0.02080813]
[1641049602944,6.58410073,46996.0,46995.0,0.02080813]
[1641049603543,6.58410073,46996.0,46994.0,0.00542695]
[1641049603743,0.65692908,46995.0,46994.0,0.00542695]
[1641049604143,0.31628708,46995.0,46994.0,0.00542695]
[1641049604342,5.95665082,46996.0,46994.0,0.00542695]
[1641049604543,5.95543023,46996.0,46994.0,0.00542695]
[1641049605949,5.95543023,46996.0,46994.0,0.05862552]
[1641049606383,5.94979321,46996.0,46995.0,0.0425]
[1641049606987,5.94979321,46996.0,46995.0,0.095696]
[1641049607385,5.94979321,46996.0,46995.0,0.145696]
[1641049607584,5.94979321,46996.0,46995.0,0.15308718]
[1641049611041,5.94979321,46996.0,46995.0,0.3543374]
[1641049611441,5.94979321,46996.0,46995.0,0.4543374]
[1641049611644,5.94979321,46996.0,46995.0,0.2543374]
[1641049611940,5.94979321,46996.0,46995.0,0.25308718]
[1641049612541,5.94979321,46996.0,46995.0,0.15308718]
[1641049612741,5.94979321,46996.0,46995.0,0.65308718]
[1641049613043,5.94979321,46996.0,46995.0,0.75308718]
[1641049613441,5.94979321,46996.0,46995.0,0.77455334]
[1641049614088,5.9496176,46996.0,46995.0,0.77455334]
[1641049614288,5.9496176,46996.0,46995.0,0.27455334]
[1641049614489,5.9496176,46996.0,46995.0,0.19458868]
[1641049614689,5.9496176,46996.0,46995.0,0.17312252]
[1641049615490,5.9496176,46996.0,46995.0,0.35308718]
[1641049615693,5.9496176,46996.0,46995.0,0.85308718]
[1641049615893,5.9496176,46996.0,46995.0,0.95308718]
[1641049616093,5.9496176,46996.0,46995.0,1.29123064]
[1641049616497,5.9496176,46996.0,46995.0,1.30988681]
[1641049617537,5.9496176,46996.0,46995.0,0.96498011]
[1641049617740,5.9496176,46996.0,46995.0,0.61694693]
[1641049617934,5.9496176,46996.0,46995.0,0.56375093]
[1641049618135,5.9496176,46996.0,46995.0,0.06375093]
[1641049618535,6.27215612,46996.0,46995.0,0.08558339]
[1641049619340,6.63603559,46996.0,46995.0,0.08558339]
[1641049619839,6.31349707,46996.0,46995.0,0.08558339]
[1641049620241,6.30971497,46996.0,46995.0,0.03668329]
[1641049620840,6.57955975,46996.0,46995.0,0.03668329]
[1641049623286,6.30971497,46996.0,46995.0,0.03668329]
[1641049623486,6.30971497,46996.0,46995.0,0.04407447]
[1641049624185,6.30971497,46996.0,46995.0,0.03668329]
[1641049624389,6.62466922,46996.0,46995.0,0.03668329]
[1641049627443,6.6190322,46996.0,46995.0,0.03668329]
[1641049628042,7.06092176,46996.0,46994.0,0.00542695]
[1641049628243,7.06092176,46996.0,46988.0,0.00899785]
[1641049628244,0.66652794,46995.0,46988.0,0.00899785]
[1641049628543,0.1,46989.0,46988.0,0.00899785]
[1641049628797,0.28057059,46989.0,46988.0,0.00899785]
[1641049629399,0.053219,46991.0,46988.0,0.00899785]
[1641049630299,0.33333647,46987.0,46984.0,0.1425]
[1641049630500,0.33333647,46987.0,46986.0,0.00739118]
[1641049631901,0.33452967,46987.0,46986.0,0.00739118]
[1641049635036,0.33435406,46987.0,46986.0,0.00739118]
[1641049636192,0.33435406,46987.0,46984.0,0.0425]
[1641049636591,0.33435406,46987.0,46982.0,0.1]
[1641049636891,0.64063066,46987.0,46980.0,0.12086643]
[1641049637092,0.33435406,46987.0,46980.0,0.07086643]
[1641049637294,0.33435406,46987.0,46980.0,0.02086643]
[1641049637692,0.053218,46985.0,46980.0,0.02086643]
[1641049637892,0.053218,46985.0,46979.0,0.10321546]
[1641049638092,0.053218,46985.0,46980.0,0.5]
[1641049638294,0.33435406,46987.0,46981.0,0.09571336]
[1641049638494,0.33435406,46987.0,46981.0,0.0925]
[1641049638694,0.33435406,46987.0,46983.0,0.053209]
[1641049638894,0.33435406,46987.0,46984.0,0.0425]
[1641049639397,0.33435406,46987.0,46984.0,0.32617413]
[1641049640045,0.33435406,46987.0,46985.0,0.053207]
[1641049640246,0.00101759,46987.0,46985.0,0.053207]
[1641049640446,0.00101759,46987.0,46986.0,0.32914843]
[1641049640644,0.00101759,46987.0,46986.0,0.47914843]
[1641049641246,5.93743397,46996.0,46987.0,0.059271]
[1641049641447,5.93743397,46996.0,46990.0,0.0532028]
[1641049641646,0.053204,46995.0,46991.0,0.0425]
[1641049642645,0.33580152,46992.0,46991.0,0.0425]
[1641049642845,0.33580152,46992.0,46991.0,0.04989118]
[1641049643792,0.33580152,46992.0,46991.0,0.10309218]
[1641049643991,0.33580152,46992.0,46991.0,0.15309218]